lending/lending_fUSD_20250819
["ID","MTS","AMOUNT","RATE_DAILY","PERIOD"]
[380270310,1755630671089,-400.0,0.00023821,30]
[380270311,1755630671155,-400.0,0.00023821,30]
[380270312,1755630671654,-400.0,0.00023821,30]
[380270313,1755630671716,-466.38,0.00023821,30]
[380270314,1755630671780,-1250.28,0.00023821,30]
[380270315,1755630671842,-2981.31,0.00023821,30]
[380270316,1755630671904,-1112.61,0.00023821,30]
[380270317,1755630671966,-866.17,0.00023821,30]
[380270318,1755630672028,-400.0,0.00023821,30]
[380270319,1755630672102,-1994.95,0.00023821,30]
[380270320,1755630672165,-664.23,0.00023821,30]
[380270321,1755630672227,-400.0,0.00023821,30]
[380270322,1755630672289,-410.99,0.00023821,30]
[380270323,1755630672352,-400.0,0.00023821,30]
[380270324,1755630672412,-2158.15,0.00023821,30]
[380270325,1755630672474,-481.8,0.00023821,30]
[380270326,1755630672535,-509.99,0.00023821,30]
[380270327,1755630672596,-400.0,0.00023821,30]
[380270328,1755630672657,-400.0,0.00023821,30]
[380270329,1755630672720,-1750.63,0.00023821,30]
[380270330,1755630672781,-1813.31,0.00023821,30]
[380270331,1755630672842,-400.0,0.00023821,30]
[380270332,1755630672903,-400.0,0.00023821,30]
[380270333,1755630672962,-400.0,0.00023821,30]
[380270334,1755630673023,-400.0,0.00023821,30]
[380270335,1755630673084,-467.36,0.00023821,30]
[380270336,1755630673145,-400.0,0.00023821,30]
[380270337,1755630673207,-413.19,0.00023821,30]
[380270338,1755630673265,-400.0,0.00023821,30]
[380270339,1755630673327,-400.0,0.00023821,30]
[380270340,1755630673387,-855.55,0.00023821,30]
[380270341,1755630673446,-400.0,0.00023821,30]
[380270342,1755630673510,-601.39,0.00023821,30]
[380270343,1755630673572,-400.0,0.00023821,30]
[380270344,1755630673636,-2280.39,0.00023821,30]
[380270345,1755630673706,-2862.7,0.00023821,30]
[380270346,1755630673772,-1314.81,0.00023821,30]
[380270347,1755630673834,-400.0,0.00023821,30]
[380270348,1755630673895,-975.51,0.00023821,30]
[380270349,1755630673958,-226.86740871,0.00023821,30]
[380270350,1755630674022,-400.0,0.00023821,30]
[380270351,1755630674086,-400.0,0.00023821,30]
[380270352,1755630674151,-2207.52,0.00023821,30]
[380270353,1755630674217,-1840.1,0.00023821,30]
[380270354,1755630674282,-2643.18,0.00023821,30]
[380270355,1755630674347,-400.0,0.00023821,30]
[380270356,1755630674411,-1472.7,0.00023821,30]
[380270357,1755630674474,-517.95,0.00023821,30]
[380270358,1755630674539,-400.0,0.00023821,30]
[380270359,1755630674603,-1486.54,0.00023821,30]
[380270360,1755630674665,-400.0,0.00023821,30]
[380270361,1755630674727,-2077.7,0.00023821,30]
[380270362,1755630674790,-400.0,0.00023821,30]
[380270363,1755630674854,-400.0,0.00023821,30]
[380270364,1755630674917,-400.0,0.00023821,30]
[380270365,1755630674981,-3186.14,0.00023821,30]
[380270366,1755630675046,-2093.14,0.00023821,30]
[380270367,1755630675111,-400.0,0.00023821,30]
[380270368,1755630675175,-3535.78,0.00023821,30]
[380270369,1755630675242,-790.95,0.00023821,30]
[380270370,1755630675309,-593.85,0.00023821,30]
[380270371,1755630675374,-2875.96,0.00023821,30]
[380270372,1755630675439,-1801.97,0.00023821,30]
[380270373,1755630675503,-691.08,0.00023821,30]
[380270374,1755630675567,-400.0,0.00023821,30]
[380270375,1755630675629,-962.38,0.00023821,30]
[380270376,1755630675695,-1485.42,0.00023821,30]
[380270377,1755630675760,-400.0,0.00023821,30]
[380270378,1755630675824,-400.0,0.00023821,30]
[380270379,1755630675886,-1374.41,0.00023821,30]
[380270380,1755630675950,-400.0,0.00023821,30]
[380270381,1755630676016,-642.48,0.00023821,30]
[380270382,1755630676082,-400.0,0.00023821,30]
[380270383,1755630676148,-2227.75,0.00023821,30]
[380270384,1755630676215,-400.0,0.00023821,30]
[380270385,1755630676281,-400.0,0.00023821,30]
[380270386,1755630676345,-1008.89,0.00023821,30]
[380270387,1755630676410,-935.31,0.00023821,30]
[380270388,1755630676474,-400.0,0.00023821,30]
[380270389,1755630676670,-734.31,0.00023821,30]
[380270390,1755630676733,-760.31,0.00023821,30]
[380270391,1755630676794,-543.43,0.00023821,30]
[380270392,1755630676854,-400.0,0.00023821,30]
[380270393,1755630676913,-588.82,0.00023821,30]
[380270394,1755630676973,-498.35,0.00023821,30]
[380270395,1755630677040,-400.0,0.00023821,30]
[380270396,1755630677105,-1235.39,0.00023821,30]
[380270397,1755630677173,-1209.49,0.00023821,30]
[380270398,1755630677240,-400.0,0.00023821,30]
[380270399,1755630677307,-400.0,0.00023821,30]
[380270400,1755630677373,-1853.54,0.00023821,30]
[380270401,1755630677438,-818.2,0.00023821,30]
[380270402,1755630677500,-1158.12,0.00023821,30]
[380270403,1755630677561,-400.0,0.00023821,30]
[380270404,1755630677623,-845.97,0.00023821,30]
[380270405,1755630677687,-1453.42,0.00023821,30]
[380270406,1755630677749,-1268.36,0.00023821,30]
[380270407,1755630677812,-400.0,0.00023821,30]
[380270408,1755630677877,-1608.12,0.00023821,30]
[380270409,1755630677944,-838.71,0.00023821,30]
[380270410,1755630678014,-2072.48,0.00023821,30]
[380270411,1755630678082,-400.0,0.00023821,30]
[380270412,1755630678153,-2234.05,0.00023821,30]
[380270413,1755630678220,-553.19,0.00023821,30]
[380270414,1755630678285,-400.0,0.00023821,30]
[380270415,1755630678353,-2377.86,0.00023821,30]
[380270416,1755630678418,-656.71,0.00023821,30]
[380270417,1755630678484,-1003.6,0.00023821,30]
[380270418,1755630678547,-491.09,0.00023821,30]
[380270419,1755630678611,-223.02835032,0.00023821,30]
[380270420,1755630678677,-575.64,0.00023821,30]
[380270421,1755630678742,-890.27,0.00023821,30]
[380270422,1755630678806,-2729.75,0.00023821,30]
[380270423,1755630678869,-400.0,0.00023821,30]
[380270424,1755630678930,-400.0,0.00023821,30]
[380270425,1755630678994,-400.0,0.00023821,30]
[380270426,1755630679060,-887.1,0.00023821,30]
[380270427,1755630679125,-1586.0,0.00023821,30]
[380270428,1755630679191,-400.0,0.00023821,30]
[380270429,1755630679259,-400.0,0.00023821,30]
[380270430,1755630679324,-400.0,0.00023821,30]
[380270431,1755630679389,-1550.01,0.00023821,30]
[380270432,1755630679451,-468.86,0.00023821,30]
[380270433,1755630679514,-2791.41,0.00023821,30]
[380270434,1755630679575,-665.78,0.00023821,30]
[380270435,1755630679638,-400.0,0.00023821,30]
[380270436,1755630679708,-1245.26,0.00023821,30]
[380270437,1755630679777,-1677.64,0.00023821,30]
[380270438,1755630679842,-1005.04,0.00023821,30]
[380270439,1755630679906,-3451.63,0.00023821,30]
[380270440,1755630679970,-400.0,0.00023821,30]
[380270441,1755630680035,-400.0,0.00023821,30]
[380270442,1755630680099,-1183.6,0.00023821,30]
[380270443,1755630680165,-400.0,0.00023821,30]
[380270444,1755630680232,-1571.68,0.00023821,30]
[380270445,1755630680299,-400.0,0.00023821,30]
[380270446,1755630680365,-400.0,0.00023821,30]
[380270447,1755630680430,-400.0,0.00023821,30]
[380270448,1755630680494,-734.99,0.00023821,30]
[380270449,1755630680555,-1852.19,0.00023821,30]
[380270450,1755630680616,-3306.45,0.00023821,30]
[380270451,1755630680681,-953.11,0.00023821,30]
[380270452,1755630680746,-2734.83,0.00023821,30]
[380270453,1755630680811,-1981.94,0.00023821,30]
[380270454,1755630680873,-553.29,0.00023821,30]
[380270455,1755630680936,-486.58,0.00023821,30]
[380270456,1755630680997,-400.0,0.00023821,30]
[380270457,1755630681063,-987.13,0.00023821,30]
[380270458,1755630681128,-713.66,0.00023821,30]
[380270459,1755630681191,-1769.53,0.00023821,30]
[380270460,1755630681257,-1151.9,0.00023821,30]
[380270461,1755630681323,-400.0,0.00023821,30]
[380270462,1755630681390,-2191.01,0.00023821,30]
[380270463,1755630681457,-1484.23,0.00023821,30]
[380270464,1755630681524,-1462.98,0.00023821,30]
[380270465,1755630681586,-400.0,0.00023821,30]
[380270466,1755630681650,-400.0,0.00023821,30]
[380270467,1755630681713,-1594.1,0.00023821,30]
[380270468,1755630681775,-584.29,0.00023821,30]
[380270469,1755630681838,-400.0,0.00023821,30]
[380270470,1755630681901,-1595.91,0.00023821,30]
[380270471,1755630681969,-400.0,0.00023821,30]
[380270472,1755630682039,-400.0,0.00023821,30]
[380270473,1755630682110,-3407.34,0.00023821,30]
[380270474,1755630682180,-1455.26,0.00023821,30]
[380270475,1755630682248,-1790.8,0.00023821,30]
[380270476,1755630682316,-1524.7,0.00023821,30]
[380270477,1755630682384,-2909.2,0.00023821,30]
[380270478,1755630682452,-644.07,0.00023821,30]
[380270479,1755630682521,-1873.68,0.00023821,30]
[380270480,1755630682587,-400.0,0.00023821,30]
[380270481,1755630682653,-1158.18,0.00023821,30]
[380270482,1755630682719,-400.0,0.00023821,30]
[380270483,1755630682782,-400.0,0.00023821,30]
[380270484,1755630682845,-3025.09,0.00023821,30]
[380270485,1755630682910,-400.0,0.00023821,30]
[380270486,1755630682974,-2938.04,0.00023821,30]
[380270487,1755630683041,-1809.01,0.00023821,30]
[380270488,1755630683113,-400.0,0.00023821,30]
[380270489,1755630683195,-2010.96,0.00023821,30]
[380270490,1755630683268,-2130.28,0.00023821,30]
[380270491,1755630683338,-846.47,0.00023821,30]
[380270492,1755630683405,-4782.04,0.00023821,30]
[380270493,1755630683473,-1217.18,0.00023821,30]
[380270494,1755630683538,-490.99,0.00023821,30]
[380270495,1755630683604,-400.0,0.00023821,30]
[380270496,1755630683673,-400.0,0.00023821,30]
[380270497,1755630683734,-928.72,0.00023821,30]
[380270498,1755630683801,-259.22510724,0.00023821,30]
[380270499,1755630683866,-400.0,0.00023821,30]
[380270500,1755630683930,-1675.25,0.00023821,30]
[380270501,1755630683994,-1922.59,0.00023821,30]
[380270502,1755630684060,-1996.2,0.00023821,30]
[380270503,1755630684128,-400.0,0.00023821,30]
[380270504,1755630684194,-3257.29,0.00023821,30]
[380270505,1755630684261,-400.0,0.00023821,30]
[380270506,1755630684586,-593.75,0.00023821,30]
[380270507,1755630684653,-400.0,0.00023821,30]
[380270508,1755630684720,-861.27,0.00023821,30]
[380270509,1755630684786,-1189.14,0.00023821,30]
[380270510,1755630684848,-400.0,0.00023821,30]
[380270511,1755630684913,-422.52,0.00023821,30]
[380270512,1755630684979,-400.0,0.00023821,30]
[380270513,1755630685042,-1492.14,0.00023821,30]
[380270514,1755630685115,-400.0,0.00023821,30]
[380270515,1755630685183,-1658.3,0.00023821,30]
[380270516,1755630685249,-3001.12,0.00023821,30]
[380270517,1755630685315,-831.55,0.00023821,30]
[380270518,1755630685382,-192.38937472,0.00023821,30]
[380270519,1755630685446,-400.0,0.00023821,30]
[380270520,1755630685509,-1042.89,0.00023821,30]
[380270521,1755630685572,-712.93,0.00023821,30]
[380270522,1755630685638,-3777.75,0.00023821,30]
[380270523,1755630685711,-801.03,0.00023821,30]
[380270524,1755630685779,-1627.46,0.00023821,30]
[380270525,1755630685840,-400.0,0.00023821,30]
[380270526,1755630685904,-400.0,0.00023821,30]
[380270527,1755630685965,-669.09,0.00023821,30]
[380270528,1755630686027,-434.2206946,0.00023821,30]
[380270529,1755630686091,-2229.74,0.00023821,30]
[380270530,1755630686156,-2223.29,0.00023821,30]
[380270531,1755630686225,-2157.52,0.00023821,30]
[380270532,1755630686298,-400.0,0.00023821,30]
[380270533,1755630686368,-235.42888006,0.00023821,30]
[380270534,1755630686434,-2318.08,0.00023821,30]
[380270535,1755630686497,-400.0,0.00023821,30]
[380270536,1755630686557,-400.0,0.00023821,30]
[380270537,1755630686619,-2788.58,0.00023821,30]
[380270538,1755630686679,-666.25,0.00023821,30]
[380270539,1755630686742,-739.46,0.00023821,30]
[380270540,1755630686803,-400.0,0.00023821,30]
[380270541,1755630686864,-400.0,0.00023821,30]
[380270542,1755630686924,-1590.45,0.00023821,30]
[380270543,1755630686986,-1065.74,0.00023821,30]
[380270544,1755630687053,-575.07,0.00023821,30]
[380270545,1755630687120,-208.8611085,0.00023821,30]
[380270546,1755630687190,-498.22,0.00023821,30]
[380270547,1755630687256,-400.0,0.00023821,30]
[380270548,1755630687325,-400.0,0.00023821,30]
[380270549,1755630687392,-400.0,0.00023821,30]
[380270550,1755630687456,-400.0,0.00023821,30]
[380270551,1755630687519,-6511.48,0.00023821,30]
[380270552,1755630687578,-2210.73,0.00023821,30]
[380270553,1755630687640,-2425.08,0.00023821,30]
[380270554,1755630687703,-590.81,0.00023821,30]
[380270555,1755630687768,-1227.79,0.00023821,30]
[380270556,1755630687832,-752.39,0.00023821,30]
[380270557,1755630687896,-463.19,0.00023821,30]
[380270558,1755630687959,-400.0,0.00023821,30]
[380270559,1755630688024,-1561.3,0.00023821,30]
[380270560,1755630688091,-447.1297566,0.00023821,30]
[380270561,1755630688161,-400.0,0.00023821,30]
[380270562,1755630688228,-1742.71,0.00023821,30]
[380270563,1755630688293,-400.0,0.00023821,30]
[380270564,1755630688360,-400.0,0.00023821,30]
[380270565,1755630688428,-400.0,0.00023821,30]
[380270566,1755630688497,-944.83,0.00023821,30]
[380270567,1755630688563,-400.0,0.00023821,30]
[380270568,1755630688630,-1256.14,0.00023821,30]
[380270569,1755630688697,-2403.42,0.00023821,30]
[380270570,1755630688772,-12558.9,0.00023821,30]
[380270571,1755630688839,-400.0,0.00023821,30]
[380270572,1755630688907,-1406.06,0.00023821,30]
[380270573,1755630688975,-1252.64,0.00023821,30]
[380270574,1755630689043,-1348.48,0.00023821,30]
[380270575,1755630689111,-2108.64,0.00023821,30]
[380270576,1755630689179,-2011.64,0.00023821,30]
[380270577,1755630689249,-2694.66,0.00023821,30]
[380270578,1755630689316,-400.0,0.00023821,30]
[380270579,1755630689385,-1676.47,0.00023821,30]
[380270580,1755630689463,-400.0,0.00023821,30]
[380270581,1755630689534,-771.77,0.00023821,30]
[380270582,1755630689599,-400.0,0.00023821,30]
[380270583,1755630689667,-400.0,0.00023821,30]
[380270584,1755630689732,-2147.28,0.00023821,30]
[380270585,1755630689798,-440.89052086,0.00023821,30]
[380270586,1755630689863,-400.0,0.00023821,30]
[380270587,1755630689929,-1004.69,0.00023821,30]
[380270588,1755630689997,-400.0,0.00023821,30]
[380270589,1755630690063,-400.0,0.00023821,30]
[380270590,1755630690134,-759.13,0.00023821,30]
[380270591,1755630690202,-400.0,0.00023821,30]
[380270592,1755630690271,-1766.6,0.00023821,30]
[380270593,1755630690336,-2391.14,0.00023821,30]
[380270594,1755630690401,-764.46,0.00023821,30]
[380270595,1755630690468,-2045.43,0.00023821,30]
[380270596,1755630690535,-2644.5,0.00023821,30]
[380270597,1755630690605,-1321.22,0.00023821,30]
[380270598,1755630690669,-250.0,0.00023821,30]
[380270599,1755630690732,-400.0,0.00023821,30]
[380270600,1755630691262,-1028.93,0.00023821,30]
[380270601,1755630691326,-2587.83,0.00023821,30]
[380270602,1755630691392,-574.26,0.00023821,30]
[380270603,1755630691456,-400.0,0.00023821,30]
[380270604,1755630691516,-414.53,0.00023821,30]
[380270605,1755630691575,-1609.98,0.00023821,30]
[380270606,1755630691634,-1988.32,0.00023821,30]
[380270607,1755630691694,-828.08,0.00023821,30]
[380270608,1755630691752,-400.0,0.00023821,30]
[380270609,1755630691809,-400.0,0.00023821,30]
[380270610,1755630691869,-402.0,0.00023821,30]
[380270611,1755630691925,-3327.81,0.00023821,30]
[380270612,1755630691982,-2635.88,0.00023821,30]
[380270613,1755630692058,-2274.92,0.00023821,30]
[380270614,1755630692134,-3966.88,0.00023821,30]
[380270615,1755630692205,-1675.13,0.00023821,30]
[380270616,1755630692277,-400.0,0.00023821,30]
[380270617,1755630692343,-400.0,0.00023821,30]
[380270618,1755630692408,-400.0,0.00023821,30]
[380270619,1755630692471,-633.22,0.00023821,30]
[380270620,1755630692529,-400.0,0.00023821,30]
[380270621,1755630692586,-400.0,0.00023821,30]
[380270622,1755630692643,-400.0,0.00023821,30]
[380270623,1755630692704,-2597.2,0.00023821,30]
[380270624,1755630692765,-400.0,0.00023821,30]
[380270625,1755630692823,-1129.6,0.00023821,30]
[380270626,1755630692879,-1454.3,0.00023821,30]
[380270627,1755630692938,-261.42909431,0.00023821,30]
[380270628,1755630693006,-400.0,0.00023821,30]
[380270629,1755630693074,-892.58,0.00023821,30]
[380270630,1755630693141,-1389.72,0.00023821,30]
[380270631,1755630693209,-704.57,0.00023821,30]
[380270632,1755630693286,-1626.22,0.00023821,30]
[380270633,1755630693357,-255.76613272,0.00023821,30]
[380270634,1755630693433,-400.0,0.00023821,30]
[380270635,1755630693506,-402.52,0.00023821,30]
[380270636,1755630693574,-758.46,0.00023821,30]
[380270637,1755630693646,-2232.67,0.00023821,30]
[380270638,1755630693719,-1948.15,0.00023821,30]
[380270639,1755630693791,-1767.01,0.00023821,30]
[380270640,1755630693861,-646.97,0.00023821,30]
[380270641,1755630693929,-1951.89,0.00023821,30]
[380270642,1755630694000,-1978.37,0.00023821,30]
[380270643,1755630694073,-988.17,0.00023821,30]
[380270644,1755630694144,-1713.52,0.00023821,30]
[380270645,1755630694216,-452.3,0.00023821,30]
[380270646,1755630694286,-1178.32,0.00023821,30]
[380270647,1755630694355,-400.0,0.00023821,30]
[380270648,1755630694425,-474.04,0.00023821,30]
[380270649,1755630694492,-400.0,0.00023821,30]
[380270650,1755630694560,-400.0,0.00023821,30]
[380270651,1755630694627,-2626.25,0.00023821,30]
[380270652,1755630694695,-400.0,0.00023821,30]
[380270653,1755630694761,-2345.23,0.00023821,30]
[380270654,1755630694828,-400.0,0.00023821,30]
[380270655,1755630694895,-843.54,0.00023821,30]
[380270656,1755630694966,-2199.04,0.00023821,30]
[380270657,1755630695053,-400.0,0.00023821,30]
[380270658,1755630695124,-3426.21,0.00023821,30]
[380270659,1755630695191,-400.0,0.00023821,30]
[380270660,1755630695256,-2339.85,0.00023821,30]
[380270661,1755630695324,-1431.42,0.00023821,30]
[380270662,1755630695388,-400.0,0.00023821,30]
[380270663,1755630695451,-1879.73,0.00023821,30]
[380270664,1755630695515,-2605.4,0.00023821,30]
[380270665,1755630695577,-2170.2,0.00023821,30]
[380270666,1755630695640,-2965.05,0.00023821,30]
[380270667,1755630695710,-400.0,0.00023821,30]
[380270668,1755630695772,-1003.58,0.00023821,30]
[380270669,1755630695833,-667.84,0.00023821,30]
[380270670,1755630695899,-1775.32,0.00023821,30]
[380270671,1755630695960,-781.97,0.00023821,30]
[380270672,1755630696023,-2499.51,0.00023821,30]
[380270673,1755630696087,-400.0,0.00023821,30]
[380270674,1755630696152,-657.01,0.00023821,30]
[380270675,1755630696216,-400.0,0.00023821,30]
[380270676,1755630696282,-400.0,0.00023821,30]
[380270677,1755630696453,-400.0,0.00023821,30]
[380270678,1755630696518,-1626.0,0.00023821,30]
[380270679,1755630696580,-400.0,0.00023821,30]
[380270680,1755630696641,-834.1,0.00023821,30]
[380270681,1755630696708,-762.72,0.00023821,30]
[380270682,1755630696772,-400.0,0.00023821,30]
[380270683,1755630696835,-812.96,0.00023821,30]
[380270684,1755630696897,-812.84,0.00023821,30]
[380270685,1755630696965,-1795.88,0.00023821,30]
[380270686,1755630697042,-400.0,0.00023821,30]
[380270687,1755630697106,-2037.62,0.00023821,30]
[380270688,1755630697172,-2089.8,0.00023821,30]
[380270689,1755630697242,-400.0,0.00023821,30]
[380270690,1755630697309,-400.0,0.00023821,30]
[380270691,1755630697375,-400.0,0.00023821,30]
[380270692,1755630697440,-912.15,0.00023821,30]
[380270693,1755630697513,-1867.16,0.00023821,30]
[380270694,1755630697580,-927.26,0.00023821,30]
[380270695,1755630697642,-400.0,0.00023821,30]
[380270696,1755630697707,-1264.15,0.00023821,30]
[380270697,1755630697770,-822.45,0.00023821,30]
[380270698,1755630697830,-1632.29,0.00023821,30]
[380270699,1755630697889,-1147.83,0.00023821,30]
[380270700,1755630697948,-400.0,0.00023821,30]
[380270701,1755630698009,-2642.11,0.00023821,30]
[380270702,1755630698072,-400.0,0.00023821,30]
[380270703,1755630698136,-437.64,0.00023821,30]
[380270704,1755630698200,-400.0,0.00023821,30]
[380270705,1755630698263,-854.72,0.00023821,30]
[380270706,1755630698327,-2401.94,0.00023821,30]
[380270707,1755630698393,-2923.07,0.00023821,30]
[380270708,1755630698456,-400.0,0.00023821,30]
[380270709,1755630698516,-531.2,0.00023821,30]
[380270710,1755630698573,-400.0,0.00023821,30]
[380270711,1755630698631,-888.25,0.00023821,30]
[380270712,1755630698696,-842.32,0.00023821,30]
[380270713,1755630698756,-1920.95,0.00023821,30]
[380270714,1755630698814,-400.0,0.00023821,30]
[380270715,1755630698874,-1522.14,0.00023821,30]
[380270716,1755630698932,-1843.66,0.00023821,30]
[380270717,1755630698993,-589.48,0.00023821,30]
[380270718,1755630699056,-1357.11,0.00023821,30]
[380270719,1755630699121,-1090.36,0.00023821,30]
[380270720,1755630699183,-400.0,0.00023821,30]
[380270721,1755630699246,-400.0,0.00023821,30]
[380270722,1755630699309,-2036.5,0.00023821,30]
[380270723,1755630699372,-2160.01,0.00023821,30]
[380270724,1755630699433,-400.0,0.00023821,30]
[380270725,1755630699495,-733.36,0.00023821,30]
[380270726,1755630699555,-400.0,0.00023821,30]
[380270727,1755630699613,-1567.0,0.00023821,30]
[380270728,1755630699673,-2269.73,0.00023821,30]
[380270729,1755630699731,-7066.74,0.00023821,30]
[380270730,1755630699792,-400.0,0.00023821,30]
[380270731,1755630699856,-2339.92,0.00023821,30]
[380270732,1755630699917,-400.0,0.00023821,30]
[380270733,1755630699982,-400.0,0.00023821,30]
[380270734,1755630700046,-1713.64,0.00023821,30]
[380270735,1755630700112,-530.76,0.00023821,30]
[380270736,1755630700176,-513.46029943,0.00023821,30]
[380270737,1755630700241,-1159.8,0.00023821,30]
[380270738,1755630700307,-400.0,0.00023821,30]
[380270739,1755630700373,-594.02,0.00023821,30]
[380270740,1755630700438,-2161.34,0.00023821,30]
[380270741,1755630700497,-785.37,0.00023821,30]
[380270742,1755630700554,-925.07,0.00023821,30]
[380270743,1755630700609,-400.0,0.00023821,30]
[380270744,1755630700663,-1533.15,0.00023821,30]
[380270745,1755630700716,-827.42,0.00023821,30]
[380270746,1755630700773,-1094.8,0.00023821,30]
[380270747,1755630700825,-400.0,0.00023821,30]
[380270748,1755630700876,-1481.14,0.00023821,30]
[380270749,1755630700928,-400.0,0.00023821,30]
[380270750,1755630700982,-400.0,0.00023821,30]
[380270751,1755630701036,-424.97,0.00023821,30]
[380270752,1755630701090,-2049.37,0.00023821,30]
[380270753,1755630701144,-400.0,0.00023821,30]
[380270754,1755630701200,-535.14,0.00023821,30]
[380270755,1755630701257,-2172.05,0.00023821,30]
[380270756,1755630701317,-475.84435625,0.00023821,30]
[380270757,1755630701380,-400.0,0.00023821,30]
[380270758,1755630701441,-1532.6,0.00023821,30]
[380270759,1755630701493,-831.55,0.00023821,30]
[380270760,1755630701544,-853.09,0.00023821,30]
[380270761,1755630701597,-1512.48,0.00023821,30]
[380270762,1755630701655,-400.0,0.00023821,30]
[380270763,1755630701712,-757.23,0.00023821,30]
[380270764,1755630701769,-400.0,0.00023821,30]
[380270765,1755630701823,-834.74,0.00023821,30]
[380270766,1755630701879,-400.0,0.00023821,30]
[380270767,1755630701937,-528.08,0.00023821,30]
[380270768,1755630701994,-1466.98,0.00023821,30]
[380270769,1755630702055,-1667.74,0.00023821,30]
[380270770,1755630702115,-851.95,0.00023821,30]
[380270771,1755630702176,-400.0,0.00023821,30]
[380270772,1755630702237,-3654.91,0.00023821,30]
[380270773,1755630702299,-400.0,0.00023821,30]
[380270774,1755630702363,-585.37,0.00023821,30]
[380270775,1755630702422,-1678.23,0.00023821,30]
[380270776,1755630702480,-500.95,0.00023821,30]
[380270777,1755630702537,-400.0,0.00023821,30]
[380270778,1755630702593,-1296.84,0.00023821,30]
[380270779,1755630702652,-990.17,0.00023821,30]
[380270780,1755630702709,-1498.02,0.00023821,30]
[380270781,1755630702766,-414.92,0.00023821,30]
[380270782,1755630702820,-490.9,0.00023821,30]
[380270783,1755630702875,-1422.74,0.00023821,30]
[380270784,1755630702929,-837.81,0.00023821,30]
[380270785,1755630702986,-684.54,0.00023821,30]
[380270786,1755630703044,-1994.78,0.00023821,30]
[380270787,1755630703104,-400.0,0.00023821,30]
[380270788,1755630703163,-916.66,0.00023821,30]
[380270789,1755630703223,-1483.77,0.00023821,30]
[380270790,1755630703286,-5424.17,0.00023821,30]
[380270791,1755630703348,-2023.25,0.00023821,30]
[380270792,1755630703411,-400.0,0.00023821,30]
[380270793,1755630703471,-827.87,0.00023821,30]
[380270794,1755630703731,-400.0,0.00023821,30]
[380270795,1755630703797,-1863.32,0.00023821,30]
[380270796,1755630703859,-1962.6,0.00023821,30]
[380270797,1755630703920,-539.12,0.00023821,30]
[380270798,1755630703988,-1489.75,0.00023821,30]
[380270799,1755630704054,-1279.96,0.00023821,30]
[380270800,1755630704116,-804.37,0.00023821,30]
[380270801,1755630704181,-879.44,0.00023821,30]
[380270802,1755630704244,-400.0,0.00023821,30]
[380270803,1755630704309,-400.0,0.00023821,30]
[380270804,1755630704375,-736.46,0.00023821,30]
[380270805,1755630704442,-400.0,0.00023821,30]
[380270806,1755630704507,-3004.1,0.00023821,30]
[380270807,1755630704574,-540.41,0.00023821,30]
[380270808,1755630704638,-903.83,0.00023821,30]
[380270809,1755630704705,-400.0,0.00023821,30]